fUST/lending_fUST_20260129
["ID","MTS","AMOUNT","RATE_DAILY","PERIOD"]
[403900279,1769643038831,-500.0,0.0001145,2]
[403900280,1769643038840,-500.0,0.0001145,2]
[403900281,1769643038850,-500.0,0.0001145,2]
[403900282,1769643038859,-500.0,0.0001145,2]
[403900283,1769643038870,-500.0,0.0001145,2]
[403900284,1769643038880,-500.0,0.0001145,2]
[403900285,1769643038893,-500.0,0.0001145,2]
[403900286,1769643038903,-500.0,0.0001145,2]
[403900287,1769643038912,-500.0,0.0001145,2]
[403900288,1769643038922,-500.0,0.0001145,2]
[403900289,1769643038932,-500.0,0.0001145,2]
[403900290,1769643038941,-500.0,0.0001145,2]
[403900291,1769643038951,-269.46111852,0.0001145,2]
[403900292,1769643038960,-500.0,0.0001145,2]
[403900293,1769643038970,-500.0,0.0001145,2]
[403900294,1769643038980,-500.0,0.0001145,2]
[403900295,1769643038990,-500.0,0.0001145,2]
[403900296,1769643038999,-500.0,0.0001145,2]
[403900297,1769643039009,-500.0,0.0001145,2]
[403900298,1769643039019,-500.0,0.0001145,2]
[403900299,1769643039028,-500.0,0.0001145,2]
[403900300,1769643039038,-500.0,0.0001145,2]
[403900301,1769643039047,-500.0,0.0001145,2]
[403900302,1769643039057,-500.0,0.0001145,2]
[403900303,1769643039067,-500.0,0.0001145,2]
[403900304,1769643039077,-500.0,0.0001145,2]
[403900305,1769643039087,-500.0,0.0001145,2]
[403900306,1769643039097,-500.0,0.0001145,2]
[403900307,1769643039107,-500.0,0.0001145,2]
[403900308,1769643039116,-500.0,0.0001145,2]
[403900309,1769643039126,-500.0,0.0001145,2]
[403900310,1769643039137,-500.0,0.0001145,2]
[403900311,1769643039147,-500.0,0.0001145,2]
[403900312,1769643039157,-500.0,0.0001145,2]
[403900313,1769643039166,-500.0,0.0001145,2]
[403900314,1769643039176,-500.0,0.0001145,2]
[403900315,1769643039186,-500.0,0.0001145,2]
[403900316,1769643039195,-500.0,0.0001145,2]
[403900317,1769643039204,-500.0,0.0001145,2]
[403900318,1769643039218,-500.0,0.0001145,2]
[403900319,1769643039227,-500.0,0.0001145,2]
[403900320,1769643039236,-500.0,0.0001145,2]
[403900321,1769643039246,-496.79555112,0.0001145,2]
[403900322,1769643039257,-500.0,0.0001145,2]
[403900323,1769643039267,-500.0,0.0001145,2]
[403900324,1769643039276,-500.0,0.0001145,2]
[403900325,1769643039287,-500.0,0.0001145,2]
[403900326,1769643039296,-500.0,0.0001145,2]
[403900327,1769643039306,-500.0,0.0001145,2]
[403900328,1769643039316,-500.0,0.0001145,2]
[403900329,1769643039326,-500.0,0.0001145,2]
[403900330,1769643039336,-500.0,0.0001145,2]
[403900331,1769643039345,-500.0,0.0001145,2]
[403900332,1769643039355,-500.0,0.0001145,2]
[403900333,1769643039364,-500.0,0.0001145,2]
[403900334,1769643039373,-500.0,0.0001145,2]
[403900335,1769643039382,-500.0,0.0001145,2]
[403900336,1769643039391,-500.0,0.0001145,2]
[403900337,1769643039400,-500.0,0.0001145,2]
[403900338,1769643039409,-500.0,0.0001145,2]
[403900339,1769643039419,-500.0,0.0001145,2]
[403900340,1769643039428,-500.0,0.0001145,2]
[403900341,1769643039438,-500.0,0.0001145,2]
[403900342,1769643039448,-500.0,0.0001145,2]
[403900343,1769643039457,-500.0,0.0001145,2]
[403900344,1769643039467,-392.10272004,0.0001145,2]
[403900345,1769643039476,-500.0,0.0001145,2]
[403900346,1769643039486,-500.0,0.0001145,2]
[403900347,1769643039496,-500.0,0.0001145,2]
[403900348,1769643039506,-500.0,0.0001145,2]
[403900349,1769643039517,-500.0,0.0001145,2]
[403900350,1769643039527,-500.0,0.0001145,2]
[403900351,1769643039537,-500.0,0.0001145,2]
[403900352,1769643039547,-500.0,0.0001145,2]
[403900353,1769643039557,-500.0,0.0001145,2]
[403900354,1769643039567,-500.0,0.0001145,2]
[403900355,1769643039577,-500.0,0.0001145,2]
[403900356,1769643039586,-500.0,0.0001145,2]
[403900357,1769643039597,-209.78761931,0.0001145,2]
[403900358,1769643039607,-500.0,0.0001145,2]
[403900359,1769643039617,-500.0,0.0001145,2]
[403900360,1769643039626,-500.0,0.0001145,2]
[403900361,1769643039637,-500.0,0.0001145,2]
[403900362,1769643039647,-500.0,0.0001145,2]
[403900363,1769643039656,-500.0,0.0001145,2]
[403900364,1769643039666,-500.0,0.0001145,2]
[403900365,1769643039676,-500.0,0.0001145,2]
[403900366,1769643039685,-500.0,0.0001145,2]
[403900367,1769643039696,-500.0,0.0001145,2]
[403900368,1769643039706,-500.0,0.0001145,2]
[403900369,1769643039715,-500.0,0.0001145,2]
[403900370,1769643039725,-500.0,0.0001145,2]
[403900371,1769643039734,-500.0,0.0001145,2]
[403900372,1769643039744,-500.0,0.0001145,2]
[403900373,1769643039753,-500.0,0.0001145,2]
[403900374,1769643039762,-500.0,0.0001145,2]
[403900375,1769643039771,-500.0,0.0001145,2]
[403900376,1769643039780,-500.0,0.0001145,2]
[403900377,1769643039789,-500.0,0.0001145,2]
[403900378,1769643039798,-500.0,0.0001145,2]
[403900379,1769643039807,-500.0,0.0001145,2]
[403900380,1769643039816,-500.0,0.0001145,2]
[403900381,1769643039826,-500.0,0.0001145,2]
[403900382,1769643039835,-617.38654935,0.0001145,2]
[403900383,1769643039844,-500.0,0.0001145,2]
[403900384,1769643039853,-500.0,0.0001145,2]
[403900385,1769643039862,-500.0,0.0001145,2]
[403900386,1769643039871,-500.0,0.0001145,2]
[403900387,1769643039880,-500.0,0.0001145,2]
[403900388,1769643039889,-500.0,0.0001145,2]
[403900389,1769643039898,-500.0,0.0001145,2]
[403900390,1769643039907,-500.0,0.0001145,2]
[403900391,1769643039916,-500.0,0.0001145,2]
[403900392,1769643039926,-500.0,0.0001145,2]
[403900393,1769643039935,-500.0,0.0001145,2]
[403900394,1769643039944,-500.0,0.0001145,2]
[403900395,1769643039953,-500.0,0.0001145,2]
[403900396,1769643039962,-500.0,0.0001145,2]
[403900397,1769643039971,-500.0,0.0001145,2]
[403900398,1769643039980,-500.0,0.0001145,2]
[403900399,1769643039990,-500.0,0.0001145,2]
[403900400,1769643039999,-500.0,0.0001145,2]
[403900401,1769643040008,-500.0,0.0001145,2]
[403900402,1769643040017,-500.0,0.0001145,2]
[403900404,1769643040027,-500.0,0.0001145,2]
[403900406,1769643040036,-500.0,0.0001145,2]
[403900407,1769643040046,-500.0,0.0001145,2]
[403900409,1769643040055,-500.0,0.0001145,2]
[403900410,1769643040064,-500.0,0.0001145,2]
[403900411,1769643040073,-500.0,0.0001145,2]
[403900412,1769643040082,-500.0,0.0001145,2]
[403900414,1769643040091,-500.0,0.0001145,2]
[403900416,1769643040100,-500.0,0.0001145,2]
[403900417,1769643040109,-500.0,0.0001145,2]
[403900419,1769643040117,-500.0,0.0001145,2]
[403900420,1769643040127,-500.0,0.0001145,2]
[403900422,1769643040136,-500.0,0.0001145,2]
[403900423,1769643040145,-500.0,0.0001145,2]
[403900424,1769643040154,-500.0,0.0001145,2]
[403900425,1769643040164,-500.0,0.0001145,2]
[403900426,1769643040173,-500.0,0.0001145,2]
[403900428,1769643040183,-519.72686658,0.0001145,2]
[403900429,1769643040191,-500.0,0.0001145,2]
[403900431,1769643040200,-500.0,0.0001145,2]
[403900432,1769643040212,-500.0,0.0001145,2]
[403900433,1769643040223,-500.0,0.0001145,2]
[403900434,1769643040232,-500.0,0.0001145,2]
[403900435,1769643040240,-650.0,0.0001145,2]
[403900436,1769643040249,-500.0,0.0001145,2]
[403900437,1769643040259,-500.0,0.0001145,2]
[403900438,1769643040268,-500.0,0.0001145,2]
[403900439,1769643040277,-500.0,0.0001145,2]
[403900440,1769643040287,-500.0,0.0001145,2]
[403900441,1769643040296,-500.0,0.0001145,2]
[403900442,1769643040305,-500.0,0.0001145,2]
[403900443,1769643040314,-500.0,0.0001145,2]
[403900444,1769643040323,-500.0,0.0001145,2]
[403900445,1769643040332,-500.0,0.0001145,2]
[403900446,1769643040342,-500.0,0.0001145,2]
[403900447,1769643040351,-500.0,0.0001145,2]
[403900448,1769643040360,-500.0,0.0001145,2]
[403900449,1769643040368,-500.0,0.0001145,2]
[403900450,1769643040377,-500.0,0.0001145,2]
[403900451,1769643040387,-500.0,0.0001145,2]
[403900452,1769643040396,-500.0,0.0001145,2]
[403900453,1769643040405,-500.0,0.0001145,2]
[403900454,1769643040414,-500.0,0.0001145,2]
[403900455,1769643040423,-500.0,0.0001145,2]
[403900456,1769643040432,-478.92448035,0.0001145,2]
[403900457,1769643040441,-500.0,0.0001145,2]
[403900458,1769643040451,-500.0,0.0001145,2]
[403900459,1769643040460,-500.0,0.0001145,2]
[403900460,1769643040469,-500.0,0.0001145,2]
[403900461,1769643040478,-500.0,0.0001145,2]
[403900462,1769643040487,-500.0,0.0001145,2]
[403900463,1769643040496,-500.0,0.0001145,2]
[403900464,1769643040506,-500.0,0.0001145,2]
[403900465,1769643040515,-500.0,0.0001145,2]
[403900466,1769643040525,-500.0,0.0001145,2]
[403900467,1769643040534,-500.0,0.0001145,2]
[403900468,1769643040543,-500.0,0.0001145,2]
[403900469,1769643040552,-500.0,0.0001145,2]
[403900470,1769643040561,-500.0,0.0001145,2]
[403900471,1769643040571,-500.0,0.0001145,2]
[403900472,1769643040580,-500.0,0.0001145,2]
[403900473,1769643040590,-500.0,0.0001145,2]
[403900474,1769643040599,-500.0,0.0001145,2]
[403900475,1769643040608,-500.0,0.0001145,2]
[403900476,1769643040618,-500.0,0.0001145,2]
[403900477,1769643040628,-500.0,0.0001145,2]
[403900478,1769643040637,-500.0,0.0001145,2]
[403900479,1769643040647,-500.0,0.0001145,2]
[403900480,1769643040656,-500.0,0.0001145,2]
[403900481,1769643040667,-500.0,0.0001145,2]
[403900482,1769643040677,-500.0,0.0001145,2]
[403900483,1769643040686,-500.0,0.0001145,2]
[403900484,1769643040695,-500.0,0.0001145,2]
[403900485,1769643040704,-500.0,0.0001145,2]
[403900486,1769643040713,-500.0,0.0001145,2]
[403900487,1769643040722,-500.0,0.0001145,2]
[403900488,1769643040732,-500.0,0.0001145,2]
[403900489,1769643040741,-500.0,0.0001145,2]
[403900490,1769643040750,-500.0,0.0001145,2]
[403900491,1769643040759,-500.0,0.0001145,2]
[403900492,1769643040768,-500.0,0.0001145,2]
[403900493,1769643040777,-361.73865494,0.0001145,2]
[403900494,1769643040786,-500.0,0.0001145,2]
[403900495,1769643040796,-500.0,0.0001145,2]
[403900496,1769643040805,-500.0,0.0001145,2]
[403900497,1769643040814,-500.0,0.0001145,2]
[403900498,1769643040824,-550.0,0.0001145,2]
[403900499,1769643040833,-500.0,0.0001145,2]
[403900500,1769643040842,-500.0,0.0001145,2]
[403900501,1769643040852,-500.0,0.0001145,2]
[403900502,1769643040861,-500.0,0.0001145,2]
[403900503,1769643040871,-500.0,0.0001145,2]
[403900504,1769643040880,-500.0,0.0001145,2]
[403900505,1769643040889,-500.0,0.00011451,2]
[403900506,1769643040899,-500.0,0.00011451,2]
[403900507,1769643040908,-500.0,0.00011451,2]
[403900508,1769643040917,-151.0,0.000115,2]
[403900509,1769643040927,-151.0,0.000115,2]
[403900510,1769643040937,-151.0,0.000115,2]
[403900511,1769643040946,-151.0,0.000115,2]
[403900512,1769643040955,-151.0,0.000115,2]
[403900513,1769643040964,-151.0,0.000115,2]
[403900514,1769643040974,-151.0,0.000115,2]
[403900515,1769643040983,-151.0,0.000115,2]
[403900516,1769643040992,-151.0,0.000115,2]
[403900517,1769643041001,-151.0,0.000115,2]
[403900518,1769643041011,-151.0,0.000115,2]
[403900519,1769643041022,-151.0,0.000115,2]
[403900520,1769643041031,-151.0,0.000115,2]
[403900521,1769643041041,-151.0,0.000115,2]
[403900522,1769643041050,-151.0,0.000115,2]
[403900523,1769643041059,-151.0,0.000115,2]
[403900524,1769643041068,-151.0,0.000115,2]
[403900525,1769643041077,-151.0,0.000115,2]
[403900526,1769643041086,-151.0,0.000115,2]
[403900527,1769643041095,-151.0,0.000115,2]
[403900528,1769643041105,-151.0,0.000115,2]
[403900529,1769643041115,-151.0,0.000115,2]
[403900530,1769643041125,-151.0,0.000115,2]
[403900531,1769643041134,-151.0,0.000115,2]
[403900532,1769643041270,-151.0,0.000115,2]
[403900533,1769643041279,-151.0,0.000115,2]
[403900534,1769643041289,-500.0,0.00011587,2]
[403900535,1769643041299,-500.0,0.00011587,2]
[403900536,1769643041309,-503.23543832,0.00011587,2]
[403900537,1769643041320,-500.0,0.00011587,2]
[403900538,1769643041329,-500.0,0.00011587,2]
[403900539,1769643041338,-500.0,0.00011587,2]
[403900540,1769643041348,-500.0,0.00011588,2]
[403900541,1769643041357,-500.0,0.00011588,2]
[403900542,1769643041366,-300.0,0.0001168,2]
[403900543,1769643041375,-300.0,0.0001168,2]
[403900544,1769643041384,-300.0,0.0001168,2]
[403900545,1769643041393,-300.0,0.0001168,2]
[403900546,1769643041402,-300.0,0.0001168,2]
[403900547,1769643041412,-300.0,0.0001168,2]
[403900548,1769643041424,-300.0,0.0001168,2]
[403900549,1769643041434,-300.0,0.0001168,2]
[403900550,1769643041444,-300.0,0.0001168,2]
[403900551,1769643041454,-300.0,0.0001168,2]
[403900552,1769643041463,-300.0,0.0001168,2]
[403900553,1769643041472,-300.0,0.0001168,2]
[403900554,1769643041482,-300.0,0.0001168,2]
[403900555,1769643041492,-300.0,0.0001168,2]
[403900556,1769643041501,-300.0,0.0001168,2]
[403900557,1769643041510,-600.0,0.0001168,2]
[403900558,1769643041519,-500.0,0.00011724,2]
[403900559,1769643041529,-500.0,0.00011724,2]
[403900560,1769643041539,-500.0,0.00011724,2]
[403900561,1769643041548,-201.03981442,0.00011724,2]
[403900562,1769643041557,-500.0,0.00011725,2]
[403900563,1769643041566,-202.41865959,0.00011725,2]
[403900564,1769643041575,-500.0,0.00011725,2]
[403900565,1769643041584,-231.517554,0.00011725,2]
[403900566,1769643041593,-500.0,0.00011861,2]
[403900567,1769643041607,-500.0,0.00011861,2]
[403900568,1769643041617,-500.0,0.00011861,2]
[403900569,1769643041627,-200.0,0.00011862,2]
[403900570,1769643041636,-500.0,0.00011998,2]
[403900571,1769643041646,-500.0,0.00011998,2]
[403900572,1769643041655,-500.0,0.00011998,2]
[403900573,1769643041664,-500.0,0.00011999,2]
[403900574,1769643041675,-1000.0,0.00012,2]
[403900575,1769643041684,-389.95699981,0.00012057,2]
[403900576,1769643041694,-389.95699981,0.00012057,2]
[403900577,1769643041703,-389.95699981,0.00012057,2]
[403900578,1769643041712,-240.18342663,0.00012057,2]
[403900579,1769643041721,-500.0,0.00012135,2]
[403900580,1769643041731,-200.0,0.00012135,2]
[403900581,1769643041740,-500.0,0.00012135,2]
[403900582,1769643041750,-500.0,0.00012272,2]
[403900583,1769643041759,-500.0,0.00012272,2]
[403900584,1769643041768,-500.0,0.00012273,2]
[403900585,1769643041777,-420.0,0.00012278,2]
[403900586,1769643041786,-1680.0,0.00012293,2]
[403900587,1769643041795,-49477.73410344,0.00012297,2]
[403900588,1769643041804,-500.0,0.00012409,2]
[403900589,1769643041813,-350.0,0.00012409,2]
[403900590,1769643041822,-362.0,0.00012546,2]
[403900591,1769643041832,-500.0,0.00012547,2]
[403900592,1769643041840,-500.0,0.00012821,2]
[403900593,1769643041850,-720.0,0.00012848,2]
[403900594,1769643041859,-250.686993,0.00012884,2]
[403900595,1769643041868,-2000.0,0.00012999,2]
[403900596,1769643041877,-420.97741925,0.00013088,2]
[403900597,1769643041887,-644.78661339,0.00013273,2]
[403900598,1769643041896,-396.20944344,0.00013273,2]
[403900599,1769643041905,-464.28564153,0.00013273,2]
[403900600,1769643041914,-623.5255519,0.00013273,2]
[403900601,1769643041924,-500.83938448,0.00013273,2]
[403900602,1769643041933,-500.0,0.00013273,2]
[403900603,1769643041943,-500.0,0.00013273,2]
[403900604,1769643041953,-500.0,0.00013273,2]
[403900605,1769643041962,-152.66149142,0.00013273,2]
[403900606,1769643041971,-491.04275471,0.00013273,2]
[403900607,1769643041981,-500.0,0.00013273,2]
[403900608,1769643041990,-500.0,0.00013273,2]
[403900609,1769643042000,-500.0,0.00013273,2]
[403900610,1769643042010,-500.0,0.00013273,2]
[403900611,1769643042020,-500.0,0.00013273,2]
[403900612,1769643042029,-501.36663055,0.00013273,2]
[403900613,1769643042039,-500.0,0.00013273,2]
[403900614,1769643042049,-500.0,0.00013273,2]
[403900615,1769643042058,-500.0,0.00013273,2]
[403900616,1769643042067,-500.0,0.00013273,2]
[403900617,1769643042076,-500.0,0.00013273,2]
[403900618,1769643042086,-1578.80115531,0.00013325,2]
[403900619,1769643042095,-261.96728039,0.00013393,2]
[403900620,1769643042105,-250.686993,0.00013427,2]
[403900621,1769643042114,-43237.65234112,0.00013479,2]
[403900622,1769643042123,-587.0,0.0001349,2]
[403900623,1769643042133,-1909.0,0.00013522,2]
[403900624,1769643042142,-300.0,0.00013673,2]
[403900625,1769643042151,-500.0,0.00013698,2]
[403900626,1769643042162,-500.0,0.00013698,2]
[403900627,1769643042171,-500.0,0.00013698,2]
[403900628,1769643042180,-500.0,0.00013698,2]
[403900629,1769643042190,-500.0,0.00013698,2]
[403900630,1769643042199,-500.0,0.00013698,2]
[403900631,1769643042209,-500.0,0.00013698,2]
[403900632,1769643042222,-500.0,0.00013698,2]
[403900633,1769643042231,-500.0,0.00013698,2]
[403900634,1769643042241,-500.0,0.00013698,2]
[403900635,1769643042250,-500.0,0.00013698,2]
[403900636,1769643042262,-500.0,0.00013698,2]
[403900637,1769643042272,-500.0,0.00013698,2]
[403900638,1769643042282,-500.0,0.00013698,2]
[403900639,1769643042293,-500.0,0.00013698,2]
[403900640,1769643042303,-500.0,0.00013698,2]
[403900641,1769643042312,-500.0,0.00013698,2]
[403900642,1769643042321,-500.0,0.00013698,2]
[403900643,1769643042330,-500.0,0.00013698,2]
[403900644,1769643042340,-640.58071433,0.00013698,2]
[403900645,1769643042349,-512.70185615,0.00013698,2]
[403900646,1769643042359,-500.0,0.00013698,2]
[403900647,1769643042368,-502.36744041,0.00013698,2]
[403900648,1769643042377,-1000.0,0.00013698,2]
[403900649,1769643042387,-1000.0,0.00013698,2]
[403900650,1769643042396,-249.26653858,0.00013698,2]
[403900651,1769643042406,-550.22281705,0.00013698,2]
[403900652,1769643042415,-500.0,0.00013698,2]
[403900653,1769643042425,-500.0,0.00013698,2]
[403900654,1769643042434,-500.0,0.00013698,2]
[403900655,1769643042443,-500.0,0.00013698,2]
[403900656,1769643042452,-503.98110863,0.00013698,2]
[403900657,1769643042462,-1000.0,0.00013698,2]
[403900658,1769643042471,-1002.06258069,0.00013698,2]
[403900659,1769643042480,-247.47386822,0.00013699,2]
[403900660,1769643042490,-563.76227886,0.00013699,2]
[403900661,1769643042499,-312.2677801,0.00013699,2]
[403900662,1769643042508,-503.09452861,0.00013699,2]
[403900663,1769643042518,-500.0,0.00013699,2]
[403900664,1769643042527,-500.0,0.00013699,2]
[403900665,1769643042536,-500.0,0.00013699,2]
[403900666,1769643042546,-500.95299738,0.00013699,2]
[403900667,1769643042557,-500.0,0.00013699,2]
[403900668,1769643042566,-500.83215907,0.00013699,2]
[403900669,1769643042575,-507.29734424,0.00013699,2]
[403900670,1769643042585,-500.0,0.00013699,2]
[403900671,1769643042594,-502.88294888,0.00013699,2]
[403900672,1769643042603,-500.0,0.00013699,2]
[403900673,1769643042612,-500.0,0.00013699,2]
[403900674,1769643042621,-500.0,0.00013699,2]
[403900675,1769643042630,-536.58578237,0.00013699,2]
[403900676,1769643042639,-500.0,0.00013699,2]
[403900677,1769643042648,-500.0,0.00013699,2]
[403900678,1769643042657,-500.0,0.00013699,2]
[403900679,1769643042666,-400.2114976,0.00013699,2]
[403900680,1769643042674,-500.65775857,0.00013699,2]
[403900681,1769643042683,-167.44166385,0.00013699,2]
[403900682,1769643042692,-501.08586009,0.00013699,2]
[403900683,1769643042701,-501.39940942,0.00013699,2]
[403900684,1769643042710,-500.0,0.00013699,2]
[403900685,1769643042720,-500.7604021,0.00013699,2]
[403900686,1769643042729,-501.77892863,0.00013699,2]
[403900687,1769643042738,-500.0,0.00013699,2]
[403900688,1769643042748,-500.70234007,0.00013699,2]
[403900689,1769643042757,-503.30750217,0.00013699,2]
[403900690,1769643042766,-500.0,0.00013699,2]
[403900691,1769643042775,-500.0,0.00013699,2]
[403900692,1769643042784,-500.0,0.00013699,2]
[403900693,1769643042793,-500.0,0.00013699,2]
[403900694,1769643042802,-502.70621251,0.00013699,2]
[403900695,1769643042812,-500.0,0.00013699,2]
[403900696,1769643042821,-501.32902716,0.00013699,2]
[403900697,1769643042830,-500.0,0.00013699,2]
[403900698,1769643042839,-500.0,0.00013699,2]
[403900699,1769643042849,-500.0,0.00013699,2]
[403900700,1769643042858,-500.0,0.00013699,2]
[403900701,1769643042867,-533.65232139,0.00013699,2]
[403900702,1769643042876,-1080.06391235,0.00013715,2]
[403900703,1769643042886,-548.16669571,0.00013821,2]
[403900704,1769643042895,-1005.2588656,0.00013821,2]
[403900705,1769643042904,-507.52933695,0.00013821,2]
[403900706,1769643042914,-1000.0,0.00013821,2]
[403900707,1769643042924,-1000.0,0.00013821,2]
[403900708,1769643042933,-1000.0,0.00013821,2]
[403900709,1769643042942,-1000.0,0.00013821,2]
[403900710,1769643042951,-1001.94091464,0.00013821,2]
[403900711,1769643042960,-1000.0,0.00013821,2]
[403900712,1769643042969,-1000.0,0.00013821,2]
[403900713,1769643042978,-1002.6154559,0.00013821,2]
[403900714,1769643042987,-1000.0,0.00013821,2]
[403900715,1769643042997,-200.32930833,0.00013835,2]
[403900716,1769643043006,-500.0,0.00013835,2]
[403900717,1769643043014,-500.0,0.00013835,2]
[403900718,1769643043023,-500.0,0.00013835,2]
[403900719,1769643043031,-200.000001,0.00013835,2]
[403900720,1769643043040,-500.0,0.00013835,2]
[403900721,1769643043049,-500.0,0.00013835,2]
[403900722,1769643043058,-190.69608356,0.00013835,2]
[403900723,1769643043067,-6360.44283417,0.00013956,2]
[403900724,1769643043076,-250.686993,0.00013969,2]
[403900725,1769643043085,-500.0,0.00013972,2]
[403900726,1769643043094,-500.0,0.00013972,2]
[403900727,1769643043103,-500.0,0.00013972,2]
[403900728,1769643043112,-500.0,0.00013972,2]
[403900729,1769643043121,-500.0,0.00013972,2]
[403900730,1769643043129,-1000.0,0.00013973,2]
[403900731,1769643043139,-2000.0,0.00014,2]
[403900732,1769643043148,-500.0,0.00014109,2]
[403900733,1769643043158,-160.44569946,0.00014109,2]
[403900734,1769643043167,-500.0,0.00014109,2]
[403900735,1769643043176,-500.0,0.00014109,2]
[403900736,1769643043185,-500.0,0.00014109,2]
[403900737,1769643043194,-400.0,0.00014109,2]
[403900738,1769643043203,-864.0,0.00014133,2]
[403900739,1769643043213,-150.3384121,0.00014221,2]
[403900740,1769643043225,-600.0,0.00014221,2]
[403900741,1769643043234,-283.25191596,0.00014246,2]
[403900742,1769643043243,-500.0,0.00014246,2]
[403900743,1769643043252,-500.0,0.00014246,2]
[403900744,1769643043263,-500.0,0.00014246,2]
[403900745,1769643043272,-250.34117545,0.00014246,2]
[403900746,1769643043283,-341.02216059,0.00014247,2]
[403900747,1769643043293,-291.60725507,0.00014247,2]
[403900748,1769643043302,-194.08711327,0.00014247,2]
[403900749,1769643043312,-1003.26235573,0.00014247,2]
[403900750,1769643043321,-1000.0,0.00014247,2]
[403900751,1769643043330,-1134.23032778,0.00014247,2]
[403900752,1769643043339,-722.3651231,0.00014247,2]
[403900753,1769643043349,-855.419529,0.00014368,2]
[403900754,1769643043358,-1500.0,0.00014368,2]
[403900755,1769643043367,-1500.0,0.00014368,2]
[403900756,1769643043376,-1500.0,0.00014368,2]
[403900757,1769643043386,-500.0,0.00014383,2]
[403900758,1769643043395,-500.0,0.00014383,2]
[403900759,1769643043404,-167.32683674,0.00014384,2]
[403900760,1769643043414,-250.686993,0.00014512,2]
[403900761,1769643043423,-350.0,0.0001452,2]
[403900762,1769643043432,-500.0,0.0001452,2]
[403900763,1769643043441,-250.0,0.00014535,2]
[403900764,1769643043450,-250.0,0.00014657,2]
[403900765,1769643043459,-900.0,0.00014768,2]
[403900766,1769643043468,-1500.0,0.00014795,2]
[403900767,1769643043477,-823.0,0.00014821,2]
[403900768,1769643043487,-595.91731816,0.000149,2]
[403900769,1769643043499,-2000.0,0.00014916,2]
[403900770,1769643043508,-2000.0,0.00014916,2]
[403900771,1769643043518,-2149.36037375,0.00015,2]
[403900772,1769643043529,-1020.62629067,0.00015,2]
[403900773,1769643043539,-90000.0,0.00015,2]
[403900774,1769643043548,-40878.38369255,0.00015,2]
[403900775,1769643043557,-151.23745507,0.00015,2]
[403900776,1769643043566,-250.686993,0.00015054,2]
[403900777,1769643043575,-512.938268,0.00015068,2]
[403900778,1769643043584,-485.19431371,0.00015088,2]
[403900779,1769643043593,-1578.80115531,0.0001525,2]
[403900780,1769643043602,-1200.0,0.00015316,2]
[403900781,1769643043611,-9558.26,0.00015342,2]
[403900782,1769643043620,-500.0,0.00015342,2]
[403900783,1769643043630,-2743947.6123058,0.000154,2]
[403900784,1769643043639,-2500.0,0.00015464,2]
[403900785,1769643043648,-2500.0,0.00015464,2]
[403900786,1769643043657,-1000.0,0.00015546,2]
[403900787,1769643043667,-250.686993,0.00015596,2]